bitfinex/quotes_ETHUSD_20260108
["timestamp","ask_amount","ask_price","bid_price","bid_amount"]
[1767868445256,0.99463775,3118.3,3117.4,0.842]
[1767868445257,0.99463775,3118.3,3117.4,1.81080077]
[1767868445429,0.99463775,3118.3,3117.5,0.96880077]
[1767868446848,0.99463775,3118.3,3117.5,4.1764927]
[1767868447023,0.99463775,3118.3,3117.5,7.77738491]
[1767868447442,0.99463775,3118.2,3117.5,4.56969298]
[1767868447637,0.99463775,3118.2,3117.5,0.96880077]
[1767868448157,0.99463775,3118.2,3117.5,4.17648981]
[1767868448328,0.99463775,3118.2,3117.5,0.96880077]
[1767868449433,0.99463775,3118.2,3117.5,4.17644903]
[1767868449829,0.99463775,3118.2,3117.5,0.96880077]
[1767868450029,0.99463775,3118.2,3117.6,0.86194741]
[1767868450623,0.99463775,3118.6,3117.7,1.00087569]
[1767868450828,0.99463775,3118.6,3117.9,0.96880077]
[1767868452326,0.99463775,3118.6,3117.9,4.17606236]
[1767868452539,3.60089221,3119.0,3117.9,4.17606236]
[1767868452540,0.99463775,3119.6,3118.5,0.96880077]
[1767868452738,0.99463775,3119.6,3118.6,5.02666228]
[1767868453063,7.25287284,3119.7,3118.6,5.02666228]
[1767868453064,0.99463775,3119.3,3118.6,0.4569693]
[1767868453239,0.99463775,3119.1,3118.3,4.17566792]
[1767868453564,0.99463775,3119.1,3118.3,0.96880077]
[1767868453941,0.99463775,3118.9,3118.3,0.96880077]
[1767868454148,0.99463775,3118.9,3118.1,4.0490245]
[1767868454149,0.99463775,3119.2,3118.4,0.96880077]
[1767868454383,0.99463775,3119.2,3118.5,0.96880077]
[1767868454557,0.99463775,3119.2,3118.6,1.38635767]
[1767868454759,0.99463775,3119.2,3118.6,0.96880077]
[1767868455565,4.20060282,3119.2,3118.6,0.96880077]
[1767868455773,0.99463775,3119.2,3118.6,0.96880077]
[1767868455941,3.20590557,3119.3,3118.6,0.96880077]
[1767868457168,4.20054332,3119.3,3118.6,0.96880077]
[1767868457861,0.99463775,3119.2,3118.6,1.42577007]
[1767868458440,3.20590557,3119.3,3118.7,0.96880077]
[1767868458865,4.20054332,3119.3,3118.7,0.96880077]
[1767868459036,0.99463775,3119.5,3118.7,0.96880077]
[1767868459454,0.99463775,3119.5,3118.8,0.96880077]
[1767868459650,4.20022737,3119.6,3119.0,0.96880077]
[1767868460066,0.99463775,3119.5,3118.9,0.41752329]
[1767868460265,0.99463775,3119.5,3118.8,0.96880077]
[1767868460973,0.99463775,3119.5,3118.6,0.4569693]
[1767868460974,0.99463775,3119.3,3118.6,0.4569693]
[1767868461166,0.99463775,3119.3,3118.3,3.20683253]
[1767868461362,0.99463775,3119.2,3118.3,4.1756333]
[1767868461575,0.99463775,3119.2,3118.4,0.96880077]
[1767868464683,0.99463775,3119.1,3118.4,0.96880077]
[1767868464882,0.99463775,3119.1,3118.3,3.60089221]
[1767868465091,0.99463775,3119.1,3118.2,0.96880077]
[1767868466258,0.99663775,3118.9,3118.2,0.96880077]
[1767868466993,0.99463775,3118.8,3118.1,0.842]
[1767868467567,0.99463775,3118.8,3118.1,1.81080077]
[1767868468394,0.99463775,3118.8,3118.1,5.01788027]
[1767868468915,0.99463775,3118.8,3118.1,1.81080077]
[1767868473097,0.99463775,3118.8,3118.2,0.96877461]
[1767868473505,0.99463775,3118.8,3118.2,4.17575045]
[1767868473691,3.20802692,3119.2,3118.6,0.96877461]
[1767868473692,0.002,3119.2,3118.6,0.96877461]
[1767868474004,0.002,3119.2,3118.3,0.03206875]
[1767868474005,4.17977104,3119.9,3119.2,0.96877461]
[1767868474199,3.20736068,3119.8,3119.2,0.96877461]
[1767868474598,0.002,3119.8,3119.2,0.96877461]
[1767868475488,0.97645585,3119.8,3119.0,0.96877461]
[1767868475689,0.002,3119.8,3119.1,0.96877461]
[1767868476513,0.002,3119.8,3119.2,0.96877461]
[1767868476890,0.002,3119.8,3119.3,0.96877461]
[1767868478595,0.002,3119.5,3119.3,0.96877461]
[1767868478810,0.002,3119.8,3119.3,0.96877461]
[1767868481527,0.97445585,3120.0,3119.3,0.96877461]
[1767868481528,0.002,3120.1,3119.6,0.96877461]
[1767868481734,0.002,3120.3,3119.7,0.96877461]
[1767868481901,0.002,3120.5,3120.1,0.96877461]
[1767868485109,0.002,3120.5,3120.2,0.96877461]
[1767868491239,0.002,3120.5,3120.2,4.17366385]
[1767868491442,0.002,3120.5,3120.3,0.96877461]
[1767868492165,0.002,3120.6,3120.3,0.96877461]
[1767868501290,0.002,3121.1,3120.6,0.96877461]
[1767868501602,4.17791068,3121.7,3120.9,0.96877461]
[1767868501815,0.97445585,3121.7,3121.0,4.57201167]
[1767868502338,13.33224911,3122.9,3120.7,0.45720117]
[1767868502339,7.36862456,3123.9,3122.0,0.93118408]
[1767868502598,0.96637098,3123.7,3121.8,1.77218408]
[1767868502809,4.16842029,3123.0,3121.9,0.93118408]
[1767868502966,0.96637098,3123.0,3122.0,0.93118408]
[1767868503161,1.46730619,3123.0,3122.0,0.93118408]
[1767868503362,0.96637098,3123.0,3122.0,0.93118408]
[1767868504577,0.92212601,3122.9,3121.3,0.92263678]
[1767868504779,0.92212601,3122.7,3121.3,0.92263678]
[1767868504965,0.92212601,3122.5,3121.3,0.92263678]
[1767868505165,0.92212601,3122.5,3121.5,0.92263678]
[1767868506582,0.92212601,3122.3,3121.5,0.92263678]
[1767868506984,0.92212601,3122.2,3120.9,0.92263678]
[1767868507220,0.92212601,3122.2,3121.0,0.92263678]
[1767868508031,0.92212601,3122.2,3120.8,6.80750105]
[1767868508032,0.92212601,3122.2,3121.1,0.92263678]
[1767868508326,0.92212601,3122.2,3121.2,0.92263678]
[1767868508524,0.92212601,3122.2,3121.3,0.92263678]
[1767868508825,0.92212601,3122.0,3121.3,0.92263678]
[1767868510639,3.20317755,3121.9,3121.3,0.92263678]
[1767868511198,0.92212601,3121.8,3121.0,0.92263678]
[1767868511397,0.92212601,3121.8,3119.9,3.76323706]
[1767868511398,0.92212601,3121.8,3120.3,3.20473039]
[1767868511629,6.4063551,3121.9,3120.5,0.92263678]
[1767868511630,0.92212601,3121.6,3120.5,0.92263678]
[1767868512629,0.73284811,3121.7,3120.5,0.92263678]
[1767868512630,0.92212601,3121.4,3120.5,0.92263678]
[1767868512833,4.1259193,3121.3,3120.5,0.92263678]
[1767868514035,3.20379329,3121.3,3120.4,0.92263678]
[1767868514409,7.32971259,3121.3,3120.4,0.92263678]
[1767868514617,0.73297126,3121.2,3120.4,0.92263678]
[1767868514943,3.93689372,3121.2,3120.4,0.92263678]
[1767868515122,7.14081618,3121.2,3120.4,0.92263678]
[1767868515643,0.92212601,3121.1,3120.4,0.92263678]
[1767868516540,0.92212601,3121.1,3120.0,0.92263678]
[1767868516839,1.72842023,3121.0,3120.0,0.92263678]
[1767868517042,3.20420391,3120.9,3120.0,0.92263678]
[1767868518113,4.12632992,3120.9,3120.0,0.92263678]
[1767868518836,0.92212601,3120.9,3120.1,0.92263678]
[1767868519040,4.1263331,3120.9,3120.1,0.92263678]
[1767868519441,4.1263302,3120.9,3120.1,0.92263678]
[1767868522371,0.80629422,3121.0,3120.4,0.92263678]
[1767868522659,0.92212601,3121.3,3120.6,0.92263678]
[1767868522819,3.20389647,3121.2,3120.6,0.92263678]
[1767868523018,4.12594028,3121.3,3120.6,0.92263678]
[1767868524041,3.20385629,3121.3,3120.8,0.92263678]
[1767868524454,4.9668267,3121.4,3120.8,0.92263678]
[1767868524633,0.49668267,3121.3,3120.8,0.92263678]
[1767868525558,3.70053173,3121.3,3120.8,0.92263678]
[1767868526957,4.12563633,3121.6,3120.8,0.92263678]
[1767868527136,0.92212601,3121.6,3120.8,0.92263678]
[1767868527349,4.12561467,3121.6,3120.8,0.92263678]
[1767868527945,0.92212601,3121.6,3120.9,0.92263678]
[1767868528727,4.1256251,3121.6,3120.9,0.92263678]
[1767868528928,4.93180089,3121.6,3120.9,0.92263678]
[1767868529365,0.80617579,3121.6,3120.9,0.92263678]
[1767868530672,3.20321017,3121.9,3121.0,0.92263678]
[1767868532274,0.90114149,3121.8,3121.0,0.92263678]
[1767868532463,3.20338277,3121.7,3121.0,0.92263678]
[1767868533399,0.90114149,3121.8,3121.0,0.92263678]
[1767868533400,3.20333409,3121.8,3121.0,0.92263678]
[1767868533554,3.20323049,3121.9,3121.1,0.95997492]
[1767868533863,0.841,3122.1,3121.1,0.95997492]
[1767868534062,3.20256204,3122.5,3121.1,0.95997492]
[1767868534286,0.90114149,3122.2,3121.4,0.95997492]
[1767868534607,0.90114149,3122.2,3121.3,0.95997492]
[1767868534765,0.90114149,3122.2,3121.4,0.95997492]
[1767868534949,4.10385727,3122.4,3121.4,4.55628979]
[1767868535160,7.30657305,3122.4,3121.5,0.95997492]
[1767868535752,10.90288792,3122.4,3121.5,0.95997492]
[1767868535956,0.90114149,3122.3,3121.5,0.95997492]
[1767868536486,4.10395819,3122.3,3121.5,0.95997492]
[1767868536685,5.19425707,3122.3,3121.5,0.95997492]
[1767868537211,0.90114149,3122.2,3121.5,0.95997492]
[1767868537515,0.90114149,3121.9,3121.1,0.95997492]
[1767868537809,0.90114149,3121.7,3121.0,0.95997492]
[1767868538789,0.90114149,3121.7,3121.1,0.95997492]
[1767868538998,0.90114149,3121.9,3121.2,0.95997492]
[1767868539197,4.10432042,3121.9,3121.2,0.95997492]
[1767868539397,0.90114149,3121.8,3121.1,0.50050562]
[1767868539598,0.90114149,3121.8,3121.1,1.46048054]
[1767868539801,0.90114149,3121.8,3121.1,0.95997492]
[1767868540196,3.59631487,3122.0,3121.1,0.95997492]
[1767868540197,3.20312752,3122.0,3121.1,0.95997492]
[1767868540500,4.10426901,3122.0,3121.1,0.95997492]
[1767868541119,0.90114149,3121.9,3121.1,0.95997492]
[1767868542116,0.90114149,3122.1,3121.3,0.95997492]
[1767868542785,3.20286977,3122.2,3121.4,0.95997492]
[1767868543008,4.10363188,3122.6,3121.7,0.95997492]
[1767868543212,0.90114149,3122.5,3121.7,0.95997492]
[1767868545027,7.30647071,3122.4,3121.7,0.95997492]
[1767868545216,4.1038061,3122.4,3121.7,0.95997492]
[1767868546127,7.30647071,3122.4,3121.7,0.95997492]
[1767868546925,4.1038061,3122.4,3121.7,0.95997492]
[1767868548200,0.90114149,3122.4,3121.8,0.95997492]
[1767868548401,4.10382628,3122.4,3121.8,0.95997492]
[1767868548910,3.20268479,3122.4,3121.8,0.95997492]
[1767868549103,3.20259309,3122.5,3121.8,0.95997492]
[1767868549304,4.10373458,3122.5,3121.8,0.95997492]
[1767868549813,7.30632767,3122.5,3121.8,0.95997492]
[1767868550036,7.30632767,3122.5,3121.8,0.96097492]
[1767868550251,0.002,3122.1,3121.8,0.96097492]
[1767868551029,0.90314149,3122.1,3121.8,0.001]
[1767868551227,0.90314149,3122.1,3121.2,4.16380716]
[1767868551228,0.90114149,3122.0,3121.2,4.16380716]
[1767868551396,0.90114149,3122.0,3121.3,0.41638072]
[1767868552224,0.90114149,3122.0,3121.2,0.95997492]
[1767868552800,0.90114149,3121.7,3120.8,0.95997492]
[1767868553009,0.90114149,3121.7,3120.3,3.20473626]
[1767868553010,0.90114149,3121.7,3120.9,0.95997492]
[1767868553231,0.90114149,3121.6,3120.9,0.95997492]
[1767868553535,0.90114149,3121.6,3120.9,4.16416646]
[1767868553706,0.90114149,3121.6,3120.9,4.98512344]
[1767868554733,3.20500175,3122.1,3121.5,0.95997492]
[1767868554734,0.002,3122.1,3121.5,0.95997492]
[1767868555038,3.20501326,3122.1,3121.5,0.95997492]
[1767868555405,4.10615475,3122.1,3121.5,0.95997492]
[1767868556237,0.90114149,3122.0,3121.3,0.95997492]
[1767868556440,0.90114149,3121.8,3121.0,0.95997492]
[1767868557409,4.10446636,3121.8,3121.0,0.95997492]
[1767868559541,0.90114149,3121.8,3121.1,0.95997492]
[1767868560156,4.10443921,3121.8,3121.1,0.95997492]
[1767868560464,0.90114149,3121.7,3120.9,0.95997492]
[1767868560618,6.40659544,3121.8,3120.4,0.001]
[1767868560619,0.90114149,3121.5,3120.6,0.95997492]
[1767868561018,0.90114149,3121.5,3120.8,0.95997492]
[1767868561264,0.002,3122.4,3122.1,0.95997492]
[1767868561436,0.90114149,3123.9,3122.4,0.95997492]
[1767868561437,3.20184426,3123.2,3122.4,0.95997492]
[1767868561632,3.20184426,3123.2,3122.5,0.95997492]
[1767868561835,0.90114149,3123.0,3122.4,0.841]
[1767868563054,0.41029858,3123.1,3122.4,1.76844583]
[1767868564655,3.20204931,3123.0,3122.4,1.76844583]
[1767868564952,3.20204931,3123.0,3122.4,0.92744583]
[1767868565371,0.98298302,3122.9,3121.9,0.98455792]
[1767868565525,0.98298302,3122.8,3122.0,0.841]
[1767868566554,0.98298302,3122.8,3122.0,1.82555792]
[1767868566754,4.18533995,3122.7,3122.0,1.82555792]
[1767868567293,4.96022429,3122.7,3122.0,1.82555792]
[1767868567455,0.98298302,3122.6,3122.0,0.841]
[1767868567628,3.97724127,3122.7,3122.1,0.98455792]
[1767868567834,3.20204931,3123.0,3122.1,0.98455792]
[1767868568033,3.88348629,3123.0,3122.1,0.98455792]
[1767868568523,3.20198213,3123.1,3122.1,0.98455792]
[1767868568723,4.18483149,3123.2,3122.2,0.98455792]
[1767868568946,7.38667996,3123.2,3122.2,0.98455792]
[1767868569556,0.98298302,3123.1,3122.2,0.841]
[1767868570328,0.98298302,3123.1,3121.7,0.98455792]
[1767868570641,0.98298302,3122.9,3121.8,0.841]
[1767868571254,0.98298302,3122.7,3121.8,0.841]
[1767868572326,0.98298302,3122.7,3121.8,1.82555792]
[1767868572551,0.98298302,3122.7,3121.9,0.98455792]
[1767868573355,4.18543621,3122.7,3121.9,0.98455792]
[1767868573654,0.98298302,3122.6,3121.8,0.841]
[1767868574656,0.98298302,3122.6,3122.1,0.001]
[1767868575030,0.98298302,3122.3,3122.1,0.001]
[1767868576432,0.98298302,3122.2,3122.1,0.001]
[1767868577851,3.20279436,3122.3,3122.1,0.001]
[1767868578051,0.98498302,3122.4,3122.1,0.001]
[1767868579565,0.98498302,3122.4,3121.4,0.001]
[1767868580176,0.98298302,3122.2,3121.4,0.001]
[1767868580337,0.98298302,3122.0,3121.4,0.001]
[1767868582149,3.20317755,3121.9,3121.4,0.001]
[1767868583678,4.18610778,3122.0,3121.4,0.001]
[1767868583679,4.18610707,3122.0,3121.4,0.001]
[1767868587383,0.002,3122.7,3122.4,0.98455792]
[1767868587578,4.58130735,3122.7,3122.1,0.841]
[1767868587874,1.44111376,3122.6,3122.1,0.841]
[1767868588192,1.44111376,3122.6,3121.9,0.841]
[1767868589360,4.64358359,3122.6,3121.9,1.82555792]
[1767868591585,4.64358359,3122.6,3121.9,0.98455792]
[1767868591586,7.84605342,3122.6,3121.9,0.98455792]
[1767868591788,7.84605342,3122.6,3121.9,1.82555792]
[1767868591958,1.14443777,3122.5,3121.9,1.82555792]
[1767868592149,1.14443777,3122.5,3121.9,0.98455792]
[1767868592355,5.68780114,3122.5,3121.7,1.74301679]
[1767868592867,2.09147681,3122.5,3121.8,0.90101679]
[1767868594085,3.20266461,3122.4,3121.8,0.90101679]
[1767868594276,4.09813881,3122.4,3121.8,0.90101679]
[1767868595479,0.8954742,3122.4,3121.8,0.90101679]
[1767868595685,0.94703904,3122.5,3121.8,0.90101679]
[1767868595884,4.14960566,3122.5,3121.8,0.90101679]
[1767868596091,3.20256662,3122.5,3121.8,0.90101679]
[1767868596404,6.40491896,3122.6,3121.8,0.90101679]
[1767868597496,7.351958,3122.6,3121.8,0.90101679]
[1767868598212,3.20266461,3122.4,3121.8,0.90101679]
[1767868599303,3.20266461,3122.4,3122.1,0.001]
[1767868600002,3.93800512,3122.5,3122.1,0.001]
[1767868600306,0.7353958,3122.5,3122.1,0.90201679]
[1767868600493,3.20436353,3122.7,3122.1,0.90201679]
[1767868600494,3.20245948,3122.6,3122.1,0.90201679]
[1767868601071,4.15140742,3122.7,3122.1,0.90201679]
[1767868601523,6.40673676,3122.7,3122.1,0.90201679]
[1767868601709,7.3537758,3122.7,3122.1,0.90201679]
[1767868603710,0.002,3122.7,3122.1,0.90201679]
[1767868603919,0.002,3122.7,3122.2,0.90101679]
[1767868604116,0.002,3122.7,3122.4,0.90101679]
[1767868606422,0.002,3122.7,3122.5,0.90101679]
[1767868607380,0.002,3122.7,3122.1,0.001]
[1767868607381,0.002,3122.7,3122.2,0.90101679]
[1767868607586,0.002,3122.7,3122.2,1.74201679]
[1767868608308,0.002,3122.7,3122.3,0.90101679]
[1767868608524,0.002,3122.7,3122.3,1.07531847]
[1767868609016,0.002,3122.7,3122.1,0.90201679]
[1767868609222,0.002,3122.7,3122.1,1.74301679]
[1767868609410,0.002,3122.7,3122.1,0.90201679]
[1767868609411,0.94903904,3122.7,3122.1,0.90201679]
[1767868610617,0.94903904,3122.7,3122.1,0.001]
[1767868611120,0.002,3122.4,3122.1,0.001]
[1767868611415,0.94903904,3122.4,3122.1,0.001]
[1767868611922,0.94903904,3122.4,3121.7,0.90201679]
[1767868612092,0.94903904,3122.4,3121.7,0.001]
[1767868613003,0.94703904,3122.3,3121.7,0.90201679]
[1767868615286,4.14984322,3122.3,3121.7,0.90201679]
[1767868617624,4.64932929,3122.3,3121.7,0.90201679]
[1767868620990,0.94703904,3122.2,3121.7,0.001]
[1767868621303,0.94703904,3122.1,3121.4,0.001]
[1767868622003,3.20307495,3122.0,3121.4,0.90201679]
[1767868622207,3.67035296,3122.0,3121.4,0.90201679]
[1767868623716,7.84267396,3122.0,3121.4,0.90201679]
[1767868625949,4.63959901,3122.0,3121.4,0.90201679]
[1767868626319,7.84267396,3122.0,3121.4,0.90201679]
[1767868629343,0.96924605,3121.8,3120.8,0.9618931]
[1767868629650,0.96924605,3121.8,3120.7,3.20434917]
[1767868629651,0.96924605,3121.8,3121.0,0.9618931]
[1767868630648,0.96924605,3121.8,3120.8,0.841]
[1767868632227,0.91320218,3121.6,3120.8,0.98705088]
[1767868632431,0.91320218,3121.6,3120.8,1.82805088]
[1767868632650,0.91320218,3121.6,3120.9,0.50324357]
[1767868634955,0.91320218,3121.5,3120.9,0.50324357]
[1767868635449,4.11660827,3121.7,3121.0,0.98705088]
[1767868636046,0.91320218,3121.6,3120.8,1.82805088]
[1767868636344,0.91320218,3121.6,3120.9,0.98705088]
[1767868636529,7.13917746,3121.5,3121.2,0.001]
[1767868636948,8.05237964,3121.5,3121.2,0.001]
[1767868638956,0.91320218,3121.4,3120.7,0.98705088]
[1767868639120,0.91320218,3121.4,3120.5,1.82805088]
[1767868639325,0.91320218,3121.4,3120.5,0.98705088]
[1767868639535,7.19095828,3120.6,3118.4,2.87519278]
[1767868639738,0.44058051,3119.7,3118.6,9.6518157]
[1767868640023,0.91320218,3120.4,3119.7,0.44058051]
[1767868640221,0.841,3120.8,3119.4,0.91320218]
[1767868640453,0.91320218,3120.7,3119.4,0.91320218]
[1767868640660,0.91320218,3120.5,3119.6,0.91320218]
[1767868640823,4.11791952,3120.4,3119.6,0.91320218]
[1767868642055,0.91320218,3120.3,3119.6,0.91320218]
[1767868642924,4.11805133,3120.3,3119.6,0.91320218]
[1767868643155,0.91320218,3120.2,3119.6,0.91320218]
[1767868643524,0.91320218,3120.2,3119.4,0.91319879]
[1767868643744,0.91320218,3120.2,3119.4,1.6846452]
[1767868644338,0.91320218,3120.2,3119.4,4.8903739]
[1767868644657,0.91320218,3120.2,3119.4,1.6846452]
[1767868646060,0.91320218,3120.1,3119.4,4.89034118]
[1767868646273,0.91320218,3120.1,3119.4,1.6846452]
[1767868646670,0.91320218,3120.1,3119.4,4.89036142]
[1767868646871,0.91320218,3120.1,3119.5,0.48903614]
[1767868647674,0.91320218,3120.1,3119.5,1.40222955]
[1767868648674,0.91320218,3120.1,3119.7,0.001]
[1767868649895,0.17542022,3120.6,3119.7,0.001]
[1767868649896,0.91320218,3120.5,3119.7,0.001]
[1767868650051,0.91320218,3120.4,3119.7,0.001]
[1767868650379,0.73224315,3120.3,3119.7,0.91419135]
[1767868650553,0.91320218,3120.4,3119.7,0.91419135]
[1767868651072,0.91320218,3120.4,3119.7,0.001]
[1767868652379,0.98719403,3120.2,3119.7,0.001]
[1767868654460,0.98719403,3120.1,3119.7,0.001]
[1767868656564,4.1922577,3120.1,3119.7,0.001]
[1767868656873,4.93196599,3120.1,3119.7,0.001]
[1767868657178,1.72690232,3120.1,3119.7,0.001]
[1767868657362,0.98719403,3120.1,3119.7,0.001]
[1767868657748,0.98719403,3120.8,3120.1,0.91318261]
[1767868657961,4.19150426,3120.8,3120.1,4.51345714]
[1767868658252,0.98719403,3120.8,3120.2,0.91318261]
[1767868658582,3.20412645,3121.0,3120.4,0.91318261]
[1767868658884,0.41913205,3120.9,3120.4,0.91318261]
[1767868660984,3.62336463,3120.9,3120.4,0.91318261]
[1767868661188,0.41913205,3120.9,3120.4,0.91318261]
[1767868661570,0.98719403,3121.0,3120.4,0.91318261]
[1767868662285,4.19130192,3121.0,3120.4,0.91318261]
[1767868666563,7.39540981,3121.0,3120.4,0.91318261]
[1767868666890,0.98719403,3120.9,3120.2,0.91317474]
[1767868667474,3.20430658,3120.8,3120.2,0.91317474]
[1767868668187,4.19150061,3120.8,3120.2,0.91317474]
[1767868668981,0.98719403,3120.7,3120.0,0.9141731]
[1767868669806,4.19161112,3120.7,3120.0,0.9141731]
[1767868669972,0.98719403,3120.7,3120.0,4.51444763]
[1767868670154,0.98719403,3120.7,3120.0,3.60127453]
[1767868670990,0.98719403,3120.7,3120.0,6.80637781]
[1767868671287,0.98719403,3120.7,3120.0,3.60127453]
[1767868672290,0.99598697,3120.6,3120.0,0.001]
[1767868672989,0.99598697,3120.4,3120.0,0.001]
[1767868676074,0.99598697,3120.3,3120.0,0.001]
[1767868676271,0.99598697,3120.2,3120.0,0.001]
[1767868676463,0.99598697,3120.1,3120.0,0.001]
[1767868677165,0.42008487,3120.2,3119.7,0.001]
[1767868677166,1.41607184,3120.2,3119.7,0.001]
[1767868677565,0.99598697,3120.4,3119.7,0.91416617]
[1767868678798,4.20074684,3120.4,3119.7,0.91416617]
[1767868679197,0.99598697,3120.4,3119.7,0.91416617]
[1767868679571,4.20070583,3120.4,3119.7,0.91416617]
[1767868680501,4.20071707,3120.4,3119.7,0.91416617]
[1767868680805,0.002,3120.5,3119.8,0.91316332]
[1767868681005,0.002,3120.8,3120.4,0.91316332]
[1767868684913,0.90395439,3120.4,3119.7,0.001]
[1767868685202,4.50422892,3119.9,3119.1,0.91315993]
[1767868685402,0.90395439,3119.8,3119.1,0.91315993]
[1767868685994,0.90395439,3120.2,3119.1,0.91315993]
[1767868686506,0.90395439,3119.8,3118.9,1.75415927]
[1767868687008,0.90395439,3119.6,3118.9,1.75415927]
[1767868687179,0.90395439,3119.6,3118.6,3.20648566]
[1767868687180,0.90395439,3119.6,3118.6,0.91315862]
[1767868687379,0.90395439,3119.5,3118.6,1.75415862]
[1767868687680,1.09151018,3119.6,3118.5,6.80690293]
[1767868687681,4.50422892,3119.3,3118.5,0.91315798]
[1767868687882,0.90395439,3119.2,3118.5,0.91315798]
[1767868688491,0.90395439,3119.2,3118.1,0.91315798]
[1767868688723,0.90395439,3119.2,3118.2,1.75415735]
[1767868688928,1.09151018,3119.6,3117.9,0.91315735]
[1767868688929,0.90395439,3119.0,3117.9,0.91315735]
[1767868689233,0.90395439,3119.0,3117.8,0.91415735]
[1767868690184,0.90395439,3118.7,3117.8,0.001]
[1767868690981,0.94567567,3118.5,3117.8,0.001]
[1767868691182,0.94567567,3118.3,3117.8,0.001]
[1767868691388,0.94567567,3118.3,3116.6,0.9131555]
[1767868691587,0.94567567,3118.3,3117.1,0.91415489]
[1767868692087,0.94567567,3118.3,3117.1,0.91298698]
[1767868693020,0.94567567,3118.1,3117.1,0.91298698]
[1767868693318,0.94567567,3117.9,3116.9,0.91298639]
[1767868694428,0.94567567,3117.9,3117.0,0.9129858]
[1767868694623,0.94567567,3117.9,3116.8,3.20840161]
[1767868694939,0.94567567,3117.9,3116.6,0.91298521]
[1767868695124,0.94567567,3117.7,3116.7,0.91298521]
[1767868695290,0.94567567,3117.7,3116.9,0.91298521]
[1767868695917,3.94315999,3118.0,3116.9,0.91298521]
[1767868695918,0.94567567,3117.9,3116.9,0.91298521]
[1767868696693,4.15299403,3117.9,3116.9,0.91298521]
[1767868696892,0.94567567,3117.8,3116.9,0.91298521]
[1767868697518,0.94567567,3117.8,3117.0,0.91298407]
[1767868697712,4.56837364,3117.8,3117.0,0.91298407]
[1767868698922,0.94567567,3117.7,3116.9,0.001]
[1767868699326,6.83009654,3117.8,3116.9,0.91398294]
[1767868699327,0.4152994,3117.8,3116.9,0.91398294]
[1767868699630,4.15306103,3117.9,3116.9,0.91398294]
[1767868699799,0.94567567,3117.8,3116.9,0.91398294]
[1767868700607,0.94567567,3118.0,3116.9,0.91398294]
[1767868700796,0.94567567,3118.0,3117.1,0.91298185]
[1767868701426,3.20728695,3117.9,3117.1,0.91298185]
[1767868701727,4.88896849,3117.9,3117.1,0.91298185]
[1767868702227,0.94567567,3117.8,3117.1,0.91298185]
[1767868703514,4.15313122,3117.8,3117.1,0.91298185]
[1767868704312,0.94567567,3117.8,3117.1,0.91298185]
[1767868704513,1.66023163,3120.5,3117.2,0.94506032]
[1767868704514,0.94567567,3118.2,3117.2,0.94506032]
[1767868704716,0.94567567,3118.2,3117.1,3.20808342]
[1767868704717,0.94567567,3118.8,3117.4,0.91297973]
[1767868704932,0.94567567,3118.8,3117.6,0.91297973]
[1767868705531,3.20646423,3118.7,3117.7,3.2074927]
[1767868705724,4.1521399,3118.7,3117.8,0.91297922]
[1767868706341,0.94567567,3118.7,3117.8,0.91297922]
[1767868706545,1.07078194,3119.5,3117.8,0.91297922]
[1767868706546,0.94567567,3119.0,3117.9,0.91297922]
[1767868707748,4.15193428,3118.9,3118.0,0.91297821]
[1767868708046,0.94567567,3118.8,3118.0,0.91297821]
[1767868708743,0.94567567,3118.8,3117.9,6.81083141]
[1767868709149,0.94567567,3118.8,3117.9,7.72380912]
[1767868709323,0.94567567,3118.8,3118.0,0.73026811]
[1767868709527,0.94567567,3118.8,3118.0,1.64324582]
[1767868709732,0.002,3118.4,3118.0,1.64324582]
[1767868710441,0.002,3118.4,3118.0,4.85042047]
[1767868711250,0.002,3118.4,3118.0,1.64324582]
[1767868711553,0.002,3118.4,3118.0,4.85041296]
[1767868711742,0.002,3118.4,3118.1,0.73280537]
[1767868717956,0.002,3118.4,3118.0,0.91297771]
[1767868718656,0.002,3118.4,3117.8,4.1203144]
[1767868720168,0.002,3118.4,3117.8,0.91297262]
[1767868720734,0.99151097,3118.4,3117.8,1.75497262]
[1767868721255,0.99151097,3118.4,3117.8,4.96235908]
[1767868721958,0.002,3118.1,3117.8,4.96235908]
[1767868722144,0.99151097,3118.4,3117.8,4.04938646]
[1767868722825,0.99151097,3118.4,3117.8,4.96235738]
[1767868723030,0.99151097,3118.4,3117.8,8.1697472]
[1767868723770,0.002,3118.4,3117.9,0.91297051]
[1767868723955,0.002,3118.4,3117.9,1.40920621]
[1767868726167,0.002,3118.4,3117.9,4.61646702]
[1767868727074,0.002,3118.4,3118.0,0.9129693]
[1767868727280,0.98951097,3119.3,3118.6,0.9129693]
[1767868727476,0.98951097,3119.2,3118.6,0.9129693]
[1767868727655,0.98951097,3119.2,3118.5,4.44541371]
[1767868727967,0.98951097,3119.2,3118.6,4.11951064]
[1767868728337,0.98951097,3119.4,3118.7,0.9129689]
[1767868728766,0.98951097,3119.4,3118.5,6.21490181]
[1767868729438,0.98951097,3119.2,3118.5,6.21490181]
[1767868729640,0.98951097,3119.2,3118.5,2.6114881]
[1767868729844,0.98951097,3119.2,3118.6,0.26114881]
[1767868730270,0.98951097,3119.2,3118.6,1.17411694]
[1767868733678,0.002,3118.9,3118.6,1.17411694]
[1767868734976,0.002,3118.9,3118.6,0.26114881]
[1767868736991,0.90204561,3119.1,3118.4,4.96172854]
[1767868737288,0.90204561,3119.1,3118.4,0.842]
[1767868737786,0.90204561,3119.1,3118.4,4.04876022]
[1767868737994,0.90204561,3119.1,3118.4,0.842]
[1767868738562,0.90204561,3119.1,3118.4,4.04874907]
[1767868738762,0.90204561,3119.1,3118.5,0.40487491]
[1767868741494,0.90204561,3119.0,3118.5,0.40487491]
[1767868741663,0.90204561,3119.0,3118.1,0.842]
[1767868743101,0.99041026,3118.8,3117.9,0.41201964]
[1767868743757,0.99041026,3118.8,3117.7,1.75484622]
[1767868743957,3.60541371,3119.2,3117.7,1.75484622]
[1767868743958,0.99041026,3119.0,3118.2,0.91284622]
[1767868744162,0.99041026,3119.0,3118.3,0.94491497]
[1767868744362,0.99041026,3118.9,3118.3,0.03206875]
[1767868744558,0.99041026,3118.9,3118.0,4.11994578]
[1767868744759,0.99041026,3118.9,3118.1,4.11988176]
[1767868745006,0.99041026,3118.9,3118.1,3.20703554]
[1767868745164,0.99041026,3118.9,3118.2,3.20697037]
[1767868745366,0.99041026,3118.9,3118.2,4.11981659]
[1767868745670,0.99041026,3118.9,3118.2,0.91284622]
[1767868745873,0.99041026,3118.9,3118.1,3.20704237]
[1767868746072,0.99241026,3118.9,3118.1,3.20704237]
[1767868746273,0.99241026,3118.9,3118.1,3.57384285]
[1767868746675,0.99041026,3118.8,3118.1,3.57388163]
[1767868748598,0.99041026,3118.8,3118.0,0.001]